{"text_format":"1","workbook":"xlsx","n_sheets":3,"sheets":["Relació de despeses","Relació d'ingressos ","despeses i ingressos"],"not_rendered":{"charts":0,"images":2,"macros":1,"external_links":0,"defined_names":6,"comments":3,"pivot_tables":0},"unopened":[],"bounds":{"document_bytes":16777216,"sheet_cells":100000,"rows_first":2000,"rows_last":500,"rows_between":2000,"halvings":0,"cell_chars":16384,"cell_head_chars":4096},"cells_cut":0,"cells_raw":0,"read":"whole","date_system":"1900"}

{"sheet":"Relació de despeses","index":0,"n_rows":84,"n_cols":12,"rows_kept":84,"cut":false,"hidden":false,"merged":[[68,0,68,10],[4,9,4,10],[9,0,9,10],[3,0,3,1],[7,1,8,1],[7,0,8,0],[6,0,6,4],[0,0,0,12],[4,0,4,1],[15,0,15,6],[2,2,2,3],[3,2,3,3],[4,2,4,3],[11,11,11,12],[2,0,2,1],[45,11,45,12],[2,4,2,6],[3,4,3,6],[4,4,4,6],[7,2,8,2],[2,9,2,10],[3,9,3,10],[51,11,51,12],[50,11,50,12],[13,11,13,12],[16,0,16,12],[31,11,31,12],[7,3,7,4],[58,0,58,12],[51,0,51,6],[33,11,33,12],[32,11,32,12],[25,11,25,12],[26,11,26,12],[27,0,27,6],[27,11,27,12],[12,11,12,12],[7,11,7,12],[8,11,8,12],[10,0,10,12],[47,11,47,12],[57,11,57,12],[56,11,56,12],[14,11,14,12],[15,11,15,12],[41,11,41,12],[22,0,22,12],[24,11,24,12],[17,11,17,12],[18,11,18,12],[19,11,19,12],[20,11,20,12],[21,0,21,6],[21,11,21,12],[23,11,23,12],[33,0,33,6],[39,0,39,6],[28,0,28,12],[30,11,30,12],[29,11,29,12],[63,11,63,12],[62,11,62,12],[61,11,61,12],[60,11,60,12],[39,11,39,12],[38,11,38,12],[37,11,37,12],[36,11,36,12],[44,11,44,12],[43,11,43,12],[42,11,42,12],[59,11,59,12],[55,11,55,12],[54,11,54,12],[65,0,65,5],[65,11,65,12],[63,0,63,6],[57,0,57,6],[52,0,52,12],[53,11,53,12],[45,0,45,6],[35,11,35,12],[83,0,83,10],[46,0,46,12],[34,0,34,12],[40,0,40,12],[49,11,49,12],[48,11,48,12],[69,0,70,9],[78,0,78,10],[80,0,80,10],[81,0,81,10],[82,0,82,10],[64,0,64,2],[64,3,64,6],[64,11,64,12]]}
["Relació classificada de totes les despeses realitzades per a l'execució de l'activitat  subvencionada"]
[]
["Persona física/jurídica beneficiària:         ",null,null,null,"Import total del projecte:",null,null,null,null,null,null,"euros"]
["Codi de subvenció:",null,null,null,"Import de la subvenció atorgada:",null,null,null,null,null,null,"euros"]
["Nom del projecte subvencionat:",null,null,null,"Període d'execució del projecte subvencionat:",null,null,null,null,null,null,"a"]
[]
["Despeses del projecte/activitat/servei subvencionat (*)"]
["Núm. d'ordre (0)","Número de document: justificants despesa personal (1), factura o rebut/tiquet(2)","Concepte de la factura / \ndocument probatori equivalent","Emissor/a de la factura",null,"Data d'emissió","Import total de la factura","Percentatge d'iva deduït o el de després d'aplicar la Prorrata","Import després de deduïr l'IVA corresponent","Import imputable (dedicat) al projecte (3)","Import imputable a la subvenció municipal (4)","Observacions"]
[null,null,null,"NIF","Nom","dd/mm/aaaa","euros","%","euros","euros","euros"]
["DESPESES DIRECTES (Aquelles que s'identifiquen directament amb el projecte)"]
["Ab1. D1.  Honoraris dels formadors/es externs. "]
[]
[]
[]
[]
[null,null,null,null,null,null,null,null,"Subtotal Ab1.D1",{"$f":"SUM(J12:J15)","v":0},{"$f":"SUM(K12:K15)","v":0}]
["Ab1. D2.  Cost salarial de les persones participants (Max 40%) "]
[]
[]
[]
[]
[null,null,null,null,null,null,null,null,"Subtotal Ab1.D2",{"$f":"SUM(J18:J21)","v":0},{"$f":"SUM(K18:K21)","v":0}]
["Ab1. D3.  Lloguer de béns immobles directament vinculats al projecte."]
[]
[]
[]
[]
[null,null,null,null,null,null,null,null,"Subtotal Ab1.D3",{"$f":"SUM(J24:J27)","v":0},{"$f":"SUM(K24:K27)","v":0}]
["Ab1. D4.  Adquisició de materials i béns consumibles íntegrament imputables al projecte."]
[]
[]
[]
[]
[null,null,null,null,null,null,null,null,"Subtotal Ab1.D4",{"$f":"SUM(J30:J33)","v":0},{"$f":"SUM(K30:K33)","v":0}]
["Ab1. D5.  Transport – missatgeria imputables al projecte."]
[]
[]
[]
[]
[null,null,null,null,null,null,null,null,"Subtotal Ab1.D5",{"$f":"SUM(J36:J39)","v":0},{"$f":"SUM(K36:K39)","v":0}]
["Ab1. D6.  Publicitat i propaganda de les activitats directament vinculades al projecte."]
[]
[]
[]
[]
[null,null,null,null,null,null,null,null,"Subtotal Ab1.D6",{"$f":"SUM(J42:J45)","v":0},{"$f":"SUM(K42:K45)","v":0}]
["Ab1. D7.  Assegurances"]
[]
[]
[]
[]
[null,null,null,null,null,null,null,null,"Subtotal Ab1.D7",{"$f":"SUM(J48:J51)","v":0},{"$f":"SUM(K48:K51)","v":0}]
["Ab1. D8.  Viatges i desplaçaments imputables a les activitats del projecte. "]
[]
[]
[]
[]
[null,null,null,null,null,null,null,null,"Subtotal Ab1.D8",{"$f":"SUM(J54:J57)","v":0},{"$f":"SUM(K54:K57)","v":0}]
["Ab2. D1. Despeses de matriculació en accions formatives externes"]
[]
[]
[]
[]
["Subtotal G",null,null,null,null,null,null,null,"Subtotal Ab2.D1",{"$f":"SUM(J60:J63)","v":0},{"$f":"SUM(K60:K63)","v":0}]
["TOTAL DESPESES DIRECTES ",null,null,"TOTAL DESPESES DIRECTES",null,null,null,null,null,{"$f":"+J16+J34+J40+J46+J52+J58+J64+J28+J22","v":0},{"$f":"+K16+K34+K40+K46+K52+K58+K64+K28+K22","v":0}]
["TOTAL DESPESES",null,null,null,null,null,"TOTAL",null,null,{"$f":"J65","v":0},{"$f":"+K65","v":0}]
[]
[]
["El Sr./Sra. (indicar el nom i cognoms de la persona representant que signa la justificació)  amb DNI/NIE (indicar el núm. DNI) en qualitat de persona física beneficiària o representant legal de la persona jurídica beneficiària (indicar nom i cognoms) amb NIF (indicar núm DNI)."]
["CERTIFICA que les despeses imputades al projecte/activitat/servei subvencionat han estat efectivament efectuades; que custodiarà la documentació suport que ho acredita; que  aquesta documentació es troba a disposició de l'Ajuntament de Barcelona o dels altres ens municipals en els arxius d'aquesta Entitat, durant un període mínim de 4 anys a comptar des de la data de presentació de la present justificació."]
[]
[]
[]
[]
[null,"Població i data: ",null,null,"Signatura i segell"]
[]
[]
["Notes:"]
["(*) S'han de relacionar totes les despeses del projecte/activitat/servei subvencionat. En el cas que el nombre de files de cada concepte sigui insuficient podeu inserir línies dins del mateix concepte seleccionant una cel·la verda i fent clic sobre el botó d'inserir línia."]
["(0) El número d'ordre ha de ser correlatiu començant per D.1.1, D1.2, D.1.3, D2.4, etc."]
["(1) Respecte a les despeses de recursos humans, pot ser subvencionable el cost total salarial mensual, que correspon a la suma de la retribució bruta que apareix a la nòmina del treballador/a més la quota de l'empresa a la Seg. Social. Les despeses de personal es justifiquen amb la nòmina del treballador/a acompanyada dels corresponents TC1 i TC2 de la TGSS i el model 111 de l'IRPF."]
["(2) En el cas que el document justificatiu de la resta de despeses, no sigui una factura, sinó un altre document probatori equivalent, com un rebut o justificant (com per dietes o transport públic), indiqueu-lo en la columna \"observacions\""]
["(3) En el cas que un justificant inclogui conceptes que no tenen a veure amb el projecte/activitat/servei per al qual s'ha atorgat la subvenció, aquí només s'ha d'indicar la part que realment s'ha dedicat al projecte."]
["(4) En aquesta columna s'ha d'indicar l'import total o parcial de la factura  que s'imputa a la subvenció rebuda de l'Ajuntament de Barcelona. El total imputat, en aquesta columna, ha de ser igual  a l'import de la subvenció rebuda."]

{"sheet":"Relació d'ingressos ","index":1,"n_rows":79,"n_cols":10,"rows_kept":79,"cut":false,"hidden":false,"merged":[[64,6,64,9],[59,6,59,9],[66,6,66,9],[60,6,60,9],[61,6,61,9],[62,6,62,9],[63,6,63,9],[66,0,66,3],[65,0,65,3],[68,0,68,9],[69,0,70,9],[65,6,65,9],[51,0,51,9],[57,0,57,9],[56,6,56,9],[58,6,58,9],[56,0,56,3],[53,6,53,9],[52,6,52,9],[0,0,0,9],[9,0,9,9],[15,0,15,9],[21,0,21,9],[7,6,8,9],[10,6,10,9],[11,6,11,9],[7,0,8,0],[12,6,12,9],[13,6,13,9],[3,2,3,3],[2,2,2,3],[6,0,6,3],[4,2,4,3],[7,2,7,3],[7,1,8,1],[14,0,14,3],[44,0,44,3],[27,0,27,9],[33,0,33,9],[39,0,39,9],[38,0,38,3],[32,0,32,3],[14,6,14,9],[20,6,20,9],[29,6,29,9],[28,6,28,9],[38,6,38,9],[37,6,37,9],[30,6,30,9],[32,6,32,9],[31,6,31,9],[26,0,26,3],[50,6,50,9],[49,6,49,9],[20,0,20,3],[45,0,45,9],[47,6,47,9],[46,6,46,9],[26,6,26,9],[25,6,25,9],[23,6,23,9],[22,6,22,9],[36,6,36,9],[35,6,35,9],[41,6,41,9],[40,6,40,9],[50,0,50,3],[48,6,48,9],[19,6,19,9],[18,6,18,9],[17,6,17,9],[16,6,16,9],[34,6,34,9],[44,6,44,9],[43,6,43,9],[42,6,42,9],[24,6,24,9]]}
["Detall de tots els ingressos obtinguts i aportacions del propi beneficiari per a l'execució de l'activitat subvencionada"]
[]
[null,"Nom de la persona física/jurídica beneficiària:        ",{"$f":"IF('Relació de despeses'!C3:D3<>\"\",'Relació de despeses'!C3:D3,\"\")","v":""},null,"Import total del projecte :",null,null,{"$f":"IF(+'Relació de despeses'!J3=\"\",\"\",+'Relació de despeses'!J3)","v":""},"euros"]
[null,"Codi de subvenció",{"$f":"IF('Relació de despeses'!C4:D4<>\"\",'Relació de despeses'!C4:D4,\"\")","v":""},null,"Import de la subvenció atorgada:",null,null,{"$f":"IF(+'Relació de despeses'!J4=\"\",\"\",+'Relació de despeses'!J4)","v":""},"euros"]
[null,"Nom del projecte subvencionat",{"$f":"IF('Relació de despeses'!C5:D5<>\"\",'Relació de despeses'!C5:D5,\"\")","v":""},null,"Període d'execució del projecte subvencionat:",null,null,{"$f":"IF(+'Relació de despeses'!J5=\"\",\"\",+'Relació de despeses'!J5)","v":""},"a",{"$f":"IF(+'Relació de despeses'!M5=\"\",\"\",+'Relació de despeses'!M5)","v":""}]
[]
["Ingressos del projecte/activitat/servei subvencionat"]
["Núm. d'ordre (0)","Concepte de l'ingrés","Emissor/a de l'ingrés",null,"Data de cobrament\n(dd/mm/aaaa)","Import","Observacions"]
[null,null,"NIF","Nom","(1)","euros"]
["A. Subvenció municipal "]
[]
[]
[]
[]
[null,null,null,null,"Subtotal A",{"$f":"SUM(F11:F14)","v":0}]
["B. Subvencions d'altres administracions"]
[]
[]
[]
[]
[null,null,null,null,"Subtotal B",{"$f":"SUM(F17:F20)","v":0}]
["C. Subvencions d'ens privats"]
[]
[]
[]
[]
[null,null,null,null,"Subtotal C",{"$f":"SUM(F23:F26)","v":0}]
["D. Recursos propis de l'entitat aplicats al projecte"]
[]
[]
[]
[]
[null,null,null,null,"Subtotal D",{"$f":"SUM(F29:F32)","v":0}]
["E. Taquillatge"]
[]
[]
[]
[]
[null,null,null,null,"Subtotal E",{"$f":"SUM(F35:F38)","v":0}]
["F. Quotes d'inscripció"]
[]
[]
[]
[]
[null,null,null,null,"Subtotal F",{"$f":"SUM(F41:F44)","v":0}]
["G. Venda de Productes"]
[]
[]
[]
[]
[null,null,null,null,"Subtotal G",{"$f":"SUM(F47:F50)","v":0}]
["H. Publicitat i/o Esponsorització"]
[]
[]
[]
[]
[null,null,null,null,"Subtotal H",{"$f":"SUM(F53:F56)","v":0}]
["I. Altres ingressos"]
[]
[]
[]
[]
[]
[]
[]
[null,null,null,null,"Subtotal I",{"$f":"SUM(F59:F65)","v":0}]
["Total INGRESSOS",null,null,null,"TOTAL",{"$f":"+F15+F21+F27+F33+F39+F45+F51+F57+F66","v":0}]
[]
[{"$f":"'Relació de despeses'!A69:K69","v":"El Sr./Sra. (indicar el nom i cognoms de la persona representant que signa la justificació)  amb DNI/NIE (indicar el núm. DNI) en qualitat de persona física beneficiària o representant legal de la persona jurídica beneficiària (indicar nom i cognoms) amb NIF (indicar núm DNI)."}]
["CERTIFICA que els ingressos imputats al projecte/activitat/servei subvencionat han estat efectivament ingressats; que custodiarà la documentació suport que ho acredita; que  aquesta documentació es troba a disposició de l'Ajuntament de Barcelona o dels altres ens municipals en els arxius d'aquesta Entitat, durant un període mínim de 4 anys a comptar des de la data de presentació de la present justificació."]
[]
[]
[]
[]
[null,"Població i data: ",null,null,"Signatura i segell"]
[]
[null,"Nota:"]
[null,"(0) El número d'ordre ha de ser correlatiu començant pel número 1"]
[null,"(1) En cas que l'ingrés estigui pendent cobrament, indicar \"P. Cobrament\" "]

{"sheet":"despeses i ingressos","index":2,"n_rows":106,"n_cols":11,"rows_kept":106,"cut":false,"hidden":false,"merged":[[4,0,4,1],[4,2,4,3],[4,5,4,6],[5,0,5,1],[5,2,5,3],[5,5,5,6],[43,0,43,10],[44,0,44,10],[45,0,45,10],[25,6,25,7],[6,0,6,1],[6,2,6,3],[9,0,9,1],[9,6,9,7],[10,0,11,1],[10,2,11,2],[10,3,11,3],[10,6,11,7],[34,0,34,9],[39,0,39,10],[40,0,40,10],[41,0,41,10],[42,0,42,10],[26,6,26,7],[26,8,26,9],[10,8,11,8],[10,9,11,9],[33,0,33,10],[51,0,52,12],[46,0,46,12],[47,0,47,12],[50,0,50,12],[48,0,48,12],[49,0,49,12]]}
[]
[]
["Estat de les despeses realitzades i dels ingressos obtinguts per a l'execució de l'activitat subvencionada (*)"]
[]
["Nom de la persona física/jurídica beneficiària:         ",null,{"$f":"IF('Relació de despeses'!C3:D3<>\"\",'Relació de despeses'!C3:D3,\"\")","v":""},null,null,"Import total del projecte:",null,{"$f":"'Relació d''ingressos '!H3","v":""},"euros"]
["Codi de subvenció:",null,{"$f":"IF('Relació de despeses'!C4:D4<>\"\",'Relació de despeses'!C4:D4,\"\")","v":""},null,null,"Import de la subvenció atorgada:",null,{"$f":"'Relació d''ingressos '!H4","v":""},"euros"]
["Nom del projecte subvencionat:",null,{"$f":"IF('Relació de despeses'!C5:D5<>\"\",'Relació de despeses'!C5:D5,\"\")","v":""},null,null,"Període d'execució del projecte subvencionat:",null,null,{"$f":"'Relació d''ingressos '!H5","v":""},"a",{"$f":"'Relació d''ingressos '!J5","v":""}]
[]
["SUBVENCIONS PER A LA PROMOCIÓ I REFORÇ DE L'ECONOMIA SOCIAL I SOLIDÀRIA 2019"]
["DESPESES PREVISTES",null,null,null,"import en euros",null,"INGRESSOS PREVISTOS"]
["Despeses directes \n(aquelles que s'identifiquen directament amb el projecte)",null,"Previsió inicial o reformulada ja aprovada (1)","Despeses realitzades (2)","Diferència\n",null,"Ingressos previstos",null,"Previsió inicial (1)","Ingressos obtinguts (3)"]
[null,null,null,null,"(2-1)"]
["Ab","1.  Honoraris dels formadors/es externs. ",null,{"$f":"'Relació de despeses'!J16","v":0},{"$f":"+C13-D13","v":0},{"$f":"+IF(D13<0,\"No s'admeten valors negatius\",\"\")","v":""},"A.","Subvenció municipal (import sol·licitat a la instància/atorgat)",null,{"$f":"'Relació d''ingressos '!F15","v":0},{"$f":"+IF(J13<0,\"No s'admeten valors negatius\",IF(J13<>'Relació d''ingressos '!F15,\"No coincideix amb import pestanya anterior\",\"\"))","v":""}]
[null,"2.  Cost salarial de les persones participants (Max 40%) ",null,{"$f":"'Relació de despeses'!J22","v":0},{"$f":"+C14-D14","v":0},{"$f":"+IF(D14<0,\"No s'admeten valors negatius\",\"\")","v":""},"B.","Subvencions d'altres administracions",null,{"$f":"'Relació d''ingressos '!F21","v":0},{"$f":"+IF(J14<0,\"No s'admeten valors negatius\",\"\")","v":""}]
[null,"3.  Lloguer de béns immobles directament vinculats al projecte.",null,{"$f":"'Relació de despeses'!J28","v":0},0,"","C.","Subvencions d'ens privats",null,{"$f":"'Relació d''ingressos '!F27","v":0},""]
[null,"4.  Adquisició de materials i béns consumibles íntegrament imputables al projecte.",null,{"$f":"'Relació de despeses'!J34","v":0},0,"","D.","Recursos propis de l'entitat aplicats al projecte",null,{"$f":"'Relació d''ingressos '!F33","v":0},""]
[null,"5.  Transport – missatgeria imputables al projecte.",null,{"$f":"'Relació de despeses'!J40","v":0},0,"","E.","Taquillatge",null,{"$f":"'Relació d''ingressos '!F39","v":0},""]
[null,"6.  Publicitat i propaganda de les activitats directament vinculades al projecte.",null,{"$f":"'Relació de despeses'!J46","v":0},0,"","F.","Quotes d'inscripció",null,{"$f":"'Relació d''ingressos '!F45","v":0},""]
[null,"7.  Assegurances",null,{"$f":"'Relació de despeses'!J52","v":0},0,"","G.","Venda de Productes",null,{"$f":"'Relació d''ingressos '!F51","v":0},""]
[null,"8.  Viatges i desplaçaments imputables a les activitats del projecte. ",null,{"$f":"'Relació de despeses'!J58","v":0},0,"","H","Publicitat i/o Esponsorització",null,{"$f":"'Relació d''ingressos '!F57","v":0},""]
[null,null,null,null,0,{"$f":"+IF(D21<0,\"No s'admeten valors negatius\",\"\")","v":""},"I.","Altres ingressos",null,{"$f":"'Relació d''ingressos '!F66","v":0},""]
["Ab2","Despeses de matriculació en accions formatives externes",null,{"$f":"'Relació de despeses'!J64","v":0},0,{"$f":"+IF(D22<0,\"No s'admeten valors negatius\",\"\")","v":""},null,"Total Ingressos",{"$f":"SUM(I13:I21)","v":0},{"$f":"SUM(J13:J21)","v":0}]
[null,null,null,null,null,""]
[null,null,null,null,null,""]
[null,null,null,null,null,""]
[null,"Total Despeses Directes   ",{"$f":"SUM(C13:C25)","v":0},{"$f":"SUM(D13:D25)","v":0},{"$f":"SUM(E13:E25)","v":0},null,"Ingressos menys despeses ",null,{"$f":"+I22-C26","v":0},{"$f":"+J22-D26","v":0}]
[null,null,null,null,null,null,"Desviació de Despeses (4)",null,"Desviació d'ingressos (4)"]
[null,null,null,null,null,null,"Import"," % ","Import","%"]
[null,null,null,null,null,null,{"$f":"D26","v":0},{"$f":"G29/C26","v":{"$error":"#DIV/0!"}},{"$f":"J22","v":0},{"$f":"I29/I22","v":{"$error":"#DIV/0!"}}]
[null,null,null,null,null,null,null,null,"% subvencionat inicialment o després de reformulació (5)",{"$f":"I13/I22","v":{"$error":"#DIV/0!"}}]
[null,null,null,null,null,null,null,null,"% subvencionat després de justificació (6)",{"$f":"+J13/J22","v":{"$error":"#DIV/0!"}}]
[]
[]
[{"$f":"'Relació de despeses'!A69:K69","v":"El Sr./Sra. (indicar el nom i cognoms de la persona representant que signa la justificació)  amb DNI/NIE (indicar el núm. DNI) en qualitat de persona física beneficiària o representant legal de la persona jurídica beneficiària (indicar nom i cognoms) amb NIF (indicar núm DNI)."}]
["CERTIFICA que els ingressos imputats al projecte/activitat/servei subvencionat han estat efectivament ingressats; que custodiarà la documentació suport que ho acredita; que  aquesta documentació es troba a disposició de l'Ajuntament de Barcelona o dels altres ens municipals en els arxius d'aquesta Entitat, durant un període mínim de 4 anys a comptar des de la data de presentació de la present justificació."]
[]
[null,"Població i data: ",null,null,"Signatura i segell"]
[]
["Notes:"]
["(*) Les columnes ombrejades en color  s'aniran emplenant automàticament a partir de les dades introduïdes en els documents de despeses -detall i ingressos-detall. Per tant, no imprimiu aquest full fins haver emplenat els altres."]
["(1) Previsió inicial o reformulació ja aprovada= S'han d'indicar la previsió inicial de despeses i d'ingressos segons allò que es va indicar al projecte original en el \"pla de viabilitat econòmica del projecte - pressupost general\" . En cas que ja s'hagi aprovat una reformulació, s'han d'indicar les quantitats reformulades. "]
["(2) Despeses reals = Cost real total del projecte subvencionat. Automàticament s'introduiran els subtotals de les despeses relacionades al full Despeses-detall."]
["(3) Ingresos reals = Total d'ingressos obtinguts per a la realització del projecte subvencionat. Automàticament s'introduiran els subtotals dels ingressos relacionats al full Ingressos-detall"]
["(4) Desviació: En el cas de les despeses, la desviació és la diferència entre despeses reals i la previsió inicial de despeses; i en el cas d'ingressos, la diferència entre els ingressos reals i la previsió inicial d'ingressos. "]
["(5) % finançament municipal = percentatge que suposen les subvencions municipals (A) respecte del  total d'ingressos del projecte subvencionat."]
["(6) El % de la desviació final de despeses es calcula dividint l'import resultant de despeses reals - despeses previstes, entre el total de despeses previstes i de la mateixa manera els ingressos, En cas d'existir una desviació sempre s'ha de motivar."]
["1.  La quantia de la subvenció atorgada no superarà el 80% de la despesa total del projecte a subvencionar. "]
["2.  Les sol·licituds poden contenir una proposta de projecte de formació que contingui les dues modalitats (b1. i b2.), o bé tant sols una submodalitat. "]
["3.  No són imputables en aquesta submodalitat cap despesa indirecta de les detallades en l’apartat 13.3 de les bases reguladores."]
["4.  Només per la modalitat b1: Durada mínima de la formació grupal s'estableix en 10 hores per a cada persona participant i el mínim s'estableix en 10 persones"]
["5.  Només per la modalitat b2: la formació a subvencionar ha de tenir una durada mínima de 150 hores i/o un cost mínim de 300 € per a cada participant"]
["6. Els salaris percebuts per les persones contractades en el marc del projecte subvencionat no siguin inferiors a 1.088,56€ bruts mensuals (13.062,72€ bruts en còmput anual) en el cas de jornades completes, o la part proporcional en el cas de jornades parcials (punt 7 de les bases 2019: Requisits dels projectes)"]
[]
[]
[]
[]
[]
[]
[]
[]
[]
[]
[]
[]
[]
[]
[]
[]
[]
[]
[]
[]
[]
[]
[]
[]
[]
[]
[]
[]
[]
[]
[]
[]
[]
[]
[]
[]
[]
[]
[]
[]
[]
[]
[]
[]
[]
[]
[]
[]
[]
[]
[]
[]
[]
[null,null,0]